bitfinex/quotes_BTCUSD_20250817
["timestamp","ask_amount","ask_price","bid_price","bid_amount"]
[1755445312075,0.55427733,118360.0,118350.0,0.28382321]
[1755445314843,0.80645866,118360.0,118350.0,0.28382321]
[1755445318573,0.55427733,118360.0,118350.0,0.28382321]
[1755445318778,0.80645866,118360.0,118350.0,0.28382321]
[1755445319685,0.80645866,118360.0,118350.0,0.26080321]
[1755445321610,0.302096,118360.0,118350.0,0.26080321]
[1755445321815,0.80645866,118360.0,118350.0,0.26080321]
[1755445322019,0.67733866,118360.0,118350.0,0.38992321]
[1755445322742,0.42515733,118360.0,118350.0,0.38992321]
[1755445324439,0.004,118360.0,118350.0,0.38992321]
[1755445324640,0.25618133,118360.0,118350.0,0.38992321]
[1755445325005,0.004,118360.0,118350.0,0.41531221]
[1755445325409,0.25618133,118360.0,118350.0,0.41531221]
[1755445327029,0.004,118360.0,118350.0,0.41531221]
[1755445327388,0.25618133,118360.0,118350.0,0.41531221]
[1755445328060,0.004,118360.0,118350.0,0.41531221]
[1755445328784,0.004,118360.0,118350.0,0.66749354]
[1755445329232,0.38126133,118380.0,118360.0,0.168976]
[1755445329491,0.38126133,118380.0,118370.0,0.17630375]
[1755445329724,0.38126133,118380.0,118370.0,0.17419173]
[1755445329945,0.38126133,118380.0,118370.0,0.30327173]
[1755445330173,0.12908,118380.0,118370.0,0.30327173]
[1755445330626,0.63644266,118380.0,118370.0,0.30327173]
[1755445331100,0.64144266,118380.0,118370.0,0.30327173]
[1755445331547,0.63644266,118380.0,118370.0,0.30327173]
[1755445331748,0.64144266,118380.0,118370.0,0.30427173]
[1755445331967,0.81039011,118380.0,118370.0,0.30427173]
[1755445332182,0.80739011,118380.0,118370.0,0.30427173]
[1755445332403,0.81139011,118380.0,118370.0,0.30527173]
[1755445333080,0.30702745,118380.0,118370.0,0.30527173]
[1755445333292,0.55920878,118380.0,118370.0,0.30527173]
[1755445333524,0.81139011,118380.0,118370.0,0.30527173]
[1755445333992,0.81139011,118380.0,118370.0,0.17619173]
[1755445338478,0.30702745,118380.0,118370.0,0.17619173]
[1755445338686,0.81139011,118380.0,118370.0,0.17619173]
[1755445343271,0.30702745,118380.0,118370.0,0.17619173]
[1755445343465,0.81139011,118380.0,118370.0,0.17619173]
[1755445344717,0.30702745,118380.0,118370.0,0.17619173]
[1755445344929,0.81139011,118380.0,118370.0,0.17619173]
[1755445345165,0.80484011,118380.0,118370.0,0.17619173]
[1755445345584,0.68231011,118380.0,118370.0,0.17619173]
[1755445349142,0.009,118380.0,118370.0,0.17619173]
[1755445349349,0.51336266,118380.0,118370.0,0.17619173]
[1755445352028,0.009,118380.0,118370.0,0.17619173]
[1755445352241,0.51336266,118380.0,118370.0,0.17619173]
[1755445352657,0.009,118380.0,118370.0,0.17619173]
[1755445353097,0.51336266,118380.0,118370.0,0.17619173]
[1755445353313,0.009,118380.0,118370.0,0.17619173]
[1755445353528,0.51336266,118380.0,118370.0,0.17619173]
[1755445354667,0.009,118380.0,118370.0,0.17619173]
[1755445354974,0.51336266,118380.0,118370.0,0.17619173]
[1755445355881,0.68231011,118380.0,118370.0,0.17619173]
[1755445356337,0.68373011,118380.0,118370.0,0.17619173]
[1755445357013,0.51478266,118380.0,118370.0,0.17619173]
[1755445358773,0.51336266,118380.0,118370.0,0.17619173]
[1755445359834,0.51336266,118380.0,118370.0,0.26100578]
[1755445360089,0.51336266,118380.0,118370.0,0.39000578]
[1755445360307,0.009,118380.0,118370.0,0.39000578]
[1755445360532,0.51336266,118380.0,118370.0,0.39000578]
[1755445363403,0.51316266,118380.0,118370.0,0.39000578]
[1755445363599,0.51316266,118380.0,118370.0,0.38980578]
[1755445365437,0.0088,118380.0,118370.0,0.38980578]
[1755445365661,0.51316266,118380.0,118370.0,0.38980578]
[1755445368224,0.51296266,118380.0,118370.0,0.38980578]
[1755445368444,0.51276266,118380.0,118370.0,0.38980578]
[1755445368847,0.51276266,118380.0,118370.0,0.38960578]
[1755445369179,0.0084,118380.0,118370.0,0.38940578]
[1755445369442,0.51256266,118380.0,118370.0,0.38940578]
[1755445369655,0.51236266,118380.0,118370.0,0.38940578]
[1755445370114,0.008,118380.0,118370.0,0.38900578]
[1755445370345,0.51236266,118380.0,118370.0,0.38900578]
[1755445370557,0.51216266,118380.0,118370.0,0.38900578]
[1755445370813,0.51216266,118380.0,118370.0,0.38880578]
[1755445370996,0.50436266,118380.0,118370.0,0.38680578]
[1755445371128,0.29789361,118390.0,118380.0,0.16894745]
[1755445371331,0.80367627,118390.0,118380.0,0.16894745]
[1755445373010,0.80767627,118390.0,118380.0,0.16994745]
[1755445373608,0.80747627,118390.0,118380.0,0.16994745]
[1755445373795,0.81247627,118390.0,118380.0,0.17094745]
[1755445374033,0.81247627,118390.0,118380.0,0.17074745]
[1755445379942,0.81227627,118390.0,118380.0,0.17074745]
[1755445383189,0.81227627,118390.0,118380.0,0.002]
[1755445383431,0.81227627,118390.0,118380.0,0.13092]
[1755445383665,0.81227627,118390.0,118380.0,0.13303184]
[1755445385239,0.81227627,118390.0,118380.0,0.13283184]
[1755445385444,0.81227627,118390.0,118380.0,0.30177929]
[1755445385660,0.81227627,118390.0,118380.0,0.29966745]
[1755445385884,0.81227627,118390.0,118380.0,0.13072]
[1755445386600,0.81227627,118390.0,118380.0,0.13283184]
[1755445386820,0.81207627,118390.0,118380.0,0.13283184]
[1755445389167,0.68371627,118390.0,118380.0,0.13283184]
[1755445389590,0.68371627,118390.0,118380.0,0.13072]
[1755445389805,0.81263627,118390.0,118380.0,0.13072]
[1755445390018,0.81352627,118390.0,118380.0,0.13072]
[1755445390432,0.81263627,118390.0,118380.0,0.13072]
[1755445391632,0.81263627,118390.0,118380.0,0.0018]
[1755445391839,0.30827361,118390.0,118380.0,0.0018]
[1755445392041,0.81263627,118390.0,118380.0,0.0018]
[1755445392258,0.81263627,118390.0,118380.0,0.0016]
[1755445393232,0.68371627,118390.0,118380.0,0.0016]
[1755445393388,0.68371627,118390.0,118380.0,0.00462]
[1755445395224,0.81263627,118390.0,118380.0,0.00462]
[1755445396619,0.81263627,118390.0,118380.0,0.0016]
[1755445399466,0.81263627,118390.0,118380.0,0.00462]
[1755445399889,0.81263627,118390.0,118380.0,0.00673184]
[1755445400094,0.81263627,118390.0,118380.0,0.00462]
[1755445400507,0.81263627,118390.0,118380.0,0.00673184]
[1755445400717,0.68371627,118390.0,118380.0,0.00462]
[1755445400951,0.68371627,118390.0,118380.0,0.13354]
[1755445402877,0.68371627,118390.0,118380.0,0.13052]
[1755445404886,0.81259627,118390.0,118380.0,0.0016]
[1755445414709,0.68371627,118390.0,118380.0,0.0016]
[1755445415102,0.68371627,118390.0,118380.0,0.0047]
[1755445416684,0.17935361,118390.0,118380.0,0.0047]
[1755445416889,0.68371627,118390.0,118380.0,0.0047]
[1755445418838,0.17935361,118390.0,118380.0,0.0047]
[1755445419030,0.68371627,118390.0,118380.0,0.0047]
[1755445430721,0.81259627,118390.0,118380.0,0.0047]
[1755445431990,0.68371627,118390.0,118380.0,0.0047]
[1755445432231,0.81259627,118390.0,118380.0,0.0047]
[1755445433257,0.81259627,118390.0,118380.0,0.0016]
[1755445433848,1.08311662,118390.0,118380.0,0.0016]
[1755445433992,0.83093529,118390.0,118380.0,0.0016]
[1755445435164,0.19680263,118390.0,118380.0,0.0016]
[1755445435367,0.44898396,118390.0,118380.0,0.00681]
[1755445435737,0.44756396,118390.0,118380.0,0.00681]
[1755445435921,0.19538263,118390.0,118380.0,0.00681]
[1755445436127,0.44756396,118390.0,118380.0,0.00681]
[1755445437197,0.19538263,118390.0,118380.0,0.00681]
[1755445437393,0.44756396,118390.0,118380.0,0.00681]
[1755445438051,0.19538263,118390.0,118380.0,0.00681]
[1755445438268,0.44756396,118390.0,118380.0,0.00681]
[1755445440557,0.17793361,118390.0,118380.0,0.00681]
[1755445440756,0.43011494,118390.0,118380.0,0.00681]
[1755445440957,0.17793361,118390.0,118380.0,0.00681]
[1755445441172,0.43011494,118390.0,118380.0,0.00681]
[1755445441598,0.17793361,118390.0,118380.0,0.00681]
[1755445441827,0.43011494,118390.0,118380.0,0.00681]
[1755445442885,0.17793361,118390.0,118380.0,0.00681]
[1755445443093,0.43011494,118390.0,118380.0,0.00681]
[1755445445524,0.68229627,118390.0,118380.0,0.00681]
[1755445447988,0.81117627,118390.0,118380.0,0.00681]
[1755445448214,0.81259627,118390.0,118380.0,0.00681]
[1755445450862,0.68371627,118390.0,118380.0,0.00681]
[1755445451064,0.68229627,118390.0,118380.0,0.00681]
[1755445452921,0.43011494,118390.0,118380.0,0.00681]
[1755445454952,0.55899494,118390.0,118380.0,0.00681]
[1755445455753,0.81117627,118390.0,118380.0,0.00681]
[1755445456877,0.55899494,118390.0,118380.0,0.00681]
[1755445458509,0.55899494,118390.0,118380.0,0.17575745]
[1755445459014,0.43011494,118390.0,118380.0,0.17575745]
[1755445459222,0.43011494,118390.0,118380.0,0.00681]
[1755445460521,0.17793361,118390.0,118380.0,0.17575745]
[1755445460947,0.43011494,118390.0,118380.0,0.17575745]
[1755445461265,0.43011494,118390.0,118380.0,0.30491745]
[1755445470183,0.17793361,118390.0,118380.0,0.30491745]
[1755445470393,0.43011494,118390.0,118380.0,0.30491745]
[1755445473721,0.43011494,118390.0,118380.0,0.20491745]
[1755445473863,0.43011494,118390.0,118380.0,0.20693745]
[1755445475382,0.43208494,118390.0,118380.0,0.20693745]
[1755445476107,0.43208494,118390.0,118380.0,0.20994745]
[1755445481642,0.17990361,118390.0,118380.0,0.20994745]
[1755445481848,0.43208494,118390.0,118380.0,0.20994745]
[1755445482078,0.17990361,118390.0,118380.0,0.20994745]
[1755445482276,0.43208494,118390.0,118380.0,0.20994745]
[1755445483585,0.43208494,118390.0,118380.0,0.20693745]
[1755445484156,0.17990361,118390.0,118380.0,0.20693745]
[1755445484368,0.43208494,118390.0,118380.0,0.20693745]
[1755445487200,0.43525494,118390.0,118380.0,0.20693745]
[1755445488632,0.18307361,118390.0,118380.0,0.20693745]
[1755445488832,0.43525494,118390.0,118380.0,0.20693745]
[1755445490573,0.17990361,118390.0,118380.0,0.20693745]
[1755445490782,0.43208494,118390.0,118380.0,0.20693745]
[1755445491417,0.17990361,118390.0,118380.0,0.20693745]
[1755445491642,0.43208494,118390.0,118380.0,0.20693745]
[1755445492882,0.43208494,118390.0,118380.0,0.2758849]
[1755445493988,0.43208494,118390.0,118380.0,0.2788949]
[1755445494646,0.43208451,118390.0,118380.0,0.2758849]
[1755445494825,0.43208451,118390.0,118380.0,0.2788949]
[1755445495423,0.17990318,118390.0,118380.0,0.2788949]
[1755445495634,0.26118133,118390.0,118380.0,0.2788949]
[1755445495812,0.43011451,118390.0,118380.0,0.2788949]
[1755445496636,0.43011451,118390.0,118380.0,0.28748828]
[1755445496965,0.26118133,118390.0,118380.0,0.28748828]
[1755445497097,0.009,118390.0,118380.0,0.28748828]
[1755445497315,0.26118133,118390.0,118380.0,0.36370895]
[1755445499617,0.009,118390.0,118380.0,0.36370895]
[1755445501613,0.26118133,118390.0,118380.0,0.36370895]
[1755445501829,0.26118133,118390.0,118380.0,0.26370895]
[1755445502821,0.26118133,118390.0,118380.0,0.27227608]
[1755445503472,0.009,118390.0,118380.0,0.27227608]
[1755445505506,0.26118133,118390.0,118380.0,0.27227608]
[1755445505656,0.009,118390.0,118380.0,0.27227608]
[1755445507403,0.005,118390.0,118380.0,0.27227608]
[1755445507613,2.9213317,118400.0,118390.0,0.16893318]
[1755445507821,2.9233817,118400.0,118390.0,0.16893318]
[1755445508120,2.9265617,118400.0,118390.0,0.16893318]
[1755445508853,2.9265617,118400.0,118390.0,0.16898206]
[1755445509183,2.9325617,118400.0,118390.0,0.16998206]
[1755445509404,2.9365617,118400.0,118390.0,0.17098206]
[1755445510272,2.9333817,118400.0,118390.0,0.17315206]
[1755445510531,2.9333817,118400.0,118390.0,0.07315206]
[1755445510744,2.9333817,118400.0,118390.0,0.07526372]
[1755445511203,2.92482908,118400.0,118390.0,0.07526372]
[1755445511623,2.92800908,118400.0,118390.0,0.07309372]
[1755445511842,3.18019041,118400.0,118390.0,0.07309372]
[1755445515150,3.18019041,118400.0,118390.0,0.12892]
[1755445515360,3.18019041,118400.0,118390.0,0.29996484]
[1755445515617,3.18019041,118400.0,118390.0,0.29785318]
[1755445517922,2.50372884,118400.0,118390.0,0.30324318]
[1755445518173,2.92277908,118400.0,118390.0,0.30324318]
[1755445518615,2.92482908,118400.0,118390.0,0.30324318]
[1755445521031,2.67264775,118400.0,118390.0,0.30324318]
[1755445521436,2.92482908,118400.0,118390.0,0.30324318]
[1755445522131,2.92482908,118400.0,118390.0,0.30002318]
[1755445522671,2.75591017,118400.0,118390.0,0.30002318]
[1755445522924,2.92482908,118400.0,118390.0,0.30002318]
[1755445527408,2.50372884,118400.0,118390.0,0.30002318]
[1755445527621,2.92482908,118400.0,118390.0,0.30002318]
[1755445528468,2.92800908,118400.0,118390.0,0.30002318]
[1755445530462,2.92800908,118400.0,118390.0,0.29785318]
[1755445536698,2.92800908,118400.0,118390.0,0.16893318]
[1755445536881,3.18019041,118400.0,118390.0,0.16893318]
[1755445537700,3.18019041,118400.0,118380.0,0.36081267]
[1755445537902,0.25218133,118390.0,118380.0,0.36086155]
[1755445538109,0.25418133,118390.0,118380.0,0.36290155]
[1755445538849,0.42311451,118390.0,118380.0,0.23386155]
[1755445539056,0.42311451,118390.0,118380.0,0.38377038]
[1755445539057,0.67825584,118390.0,118380.0,0.38377038]
[1755445539391,0.42607451,118390.0,118380.0,0.38377038]
[1755445540583,0.43107451,118390.0,118380.0,0.38477038]
[1755445541737,0.43107451,118390.0,118380.0,0.38577038]
[1755445544394,0.43107451,118390.0,118380.0,0.38477038]
[1755445544601,0.43507451,118390.0,118380.0,0.38577038]
[1755445544803,0.43507451,118390.0,118380.0,0.21682293]
[1755445545500,0.43507451,118390.0,118380.0,0.38577038]
[1755445548035,0.18289318,118390.0,118380.0,0.38577038]
[1755445548688,0.43507451,118390.0,118380.0,0.38577038]
[1755445553731,0.43507451,118390.0,118380.0,0.38781038]
[1755445555730,0.43507451,118390.0,118380.0,0.21886293]
[1755445556030,0.43507451,118390.0,118380.0,0.38781038]
[1755445560747,0.43507451,118390.0,118380.0,0.21886293]
[1755445561529,0.43507451,118390.0,118380.0,0.38781038]
[1755445561743,0.68725584,118390.0,118380.0,0.13168888]
[1755445565485,0.18289318,118390.0,118380.0,0.13168888]
[1755445565715,0.68725584,118390.0,118380.0,0.13168888]
[1755445568618,0.83414486,118390.0,118380.0,0.00204888]
[1755445569823,0.3297822,118390.0,118380.0,0.00204888]
[1755445570033,0.83414486,118390.0,118380.0,0.00204888]
[1755445570344,0.58196353,118390.0,118380.0,0.00204888]
[1755445570555,0.45252353,118390.0,118380.0,0.00204888]
[1755445570992,0.70470486,118390.0,118380.0,0.00204888]
[1755445571616,0.45252353,118390.0,118380.0,0.00204888]
[1755445572963,0.70470486,118390.0,118380.0,0.00204888]
[1755445573540,0.75545486,118390.0,118380.0,0.00204888]
[1755445573766,0.70470486,118390.0,118380.0,0.00204888]
[1755445574581,0.2003422,118390.0,118380.0,0.00204888]
[1755445574807,0.70470486,118390.0,118380.0,0.00204888]
[1755445576579,0.83406486,118390.0,118380.0,0.00204888]
[1755445577712,0.58188353,118390.0,118380.0,0.00204888]
[1755445577920,0.83406486,118390.0,118380.0,0.00204888]
[1755445579100,0.58188353,118390.0,118380.0,0.00204888]
[1755445580146,0.83406486,118390.0,118380.0,0.00204888]
[1755445580824,0.3297022,118390.0,118380.0,0.00204888]
[1755445581038,0.83406486,118390.0,118380.0,0.00204888]
[1755445583683,0.3297022,118390.0,118380.0,0.00204888]
[1755445583976,0.83406486,118390.0,118380.0,0.00204888]
[1755445584260,0.3297022,118390.0,118380.0,0.00204888]
[1755445584542,0.58188353,118390.0,118380.0,0.00204888]
[1755445586531,0.57892353,118390.0,118380.0,0.00403888]
[1755445586741,0.58201353,118390.0,118380.0,0.00403888]
[1755445587159,0.58201353,118390.0,118380.0,0.00204888]
[1755445590631,0.3298322,118390.0,118380.0,0.00204888]
[1755445590814,0.58201353,118390.0,118380.0,0.00204888]
[1755445591369,0.3298322,118390.0,118380.0,0.00204888]
[1755445591564,0.58201353,118390.0,118380.0,0.00204888]
[1755445599249,0.3298322,118390.0,118380.0,0.00204888]
[1755445599428,0.58201353,118390.0,118380.0,0.00204888]
[1755445601944,0.58201353,118390.0,118380.0,0.00419888]
[1755445602373,0.3298322,118390.0,118380.0,0.00419888]
[1755445602654,0.45265353,118390.0,118380.0,0.00419888]
[1755445606624,0.58169353,118390.0,118380.0,0.00419888]
[1755445607386,0.57860353,118390.0,118380.0,0.00419888]
[1755445610528,0.57860353,118390.0,118380.0,0.00735888]
[1755445610680,0.57860353,118390.0,118380.0,0.00419888]
[1755445611331,0.58176353,118390.0,118380.0,0.00204888]
[1755445614369,0.58176353,118390.0,118380.0,0.00419888]
[1755445617779,0.56115451,118390.0,118380.0,0.00419888]
[1755445618019,0.56115451,118390.0,118380.0,0.00735888]
[1755445618406,0.56115451,118390.0,118380.0,0.00419888]
[1755445620758,0.56431451,118390.0,118380.0,0.00419888]
[1755445621811,0.31213318,118390.0,118380.0,0.00419888]
[1755445622046,0.43011451,118390.0,118380.0,0.00419888]
[1755445622279,0.30693318,118390.0,118380.0,0.00735888]
[1755445622508,0.55911451,118390.0,118380.0,0.00735888]
[1755445623768,0.56113451,118390.0,118380.0,0.00735888]
[1755445624176,0.43213451,118390.0,118380.0,0.00735888]
[1755445625308,0.43213451,118390.0,118380.0,0.17630633]
[1755445625734,0.43213451,118390.0,118380.0,0.00735888]
[1755445626914,0.17995318,118390.0,118380.0,0.00735888]
[1755445627138,0.43213451,118390.0,118380.0,0.17630633]
[1755445627391,0.43213451,118390.0,118380.0,0.00735888]
[1755445628889,0.43213451,118390.0,118380.0,0.00419888]
[1755445630258,0.17995318,118390.0,118380.0,0.00419888]
[1755445630511,0.43213451,118390.0,118380.0,0.00419888]
[1755445631940,0.43513451,118390.0,118380.0,0.00419888]
[1755445633735,0.43513451,118390.0,118380.0,0.00204888]
[1755445634573,0.43213451,118390.0,118380.0,0.00400888]
[1755445637939,0.43213451,118390.0,118380.0,0.17295633]
[1755445639864,0.43213451,118390.0,118380.0,0.00400888]
[1755445641126,0.43213451,118390.0,118380.0,0.17295633]
[1755445641343,0.43213451,118390.0,118380.0,0.00400888]
[1755445642138,0.43213451,118390.0,118380.0,0.17295633]
[1755445644011,0.43213451,118390.0,118380.0,0.17609633]
[1755445645709,0.17995318,118390.0,118380.0,0.17609633]
[1755445645841,0.43213451,118390.0,118380.0,0.17609633]
[1755445648659,0.17995318,118390.0,118380.0,0.17609633]
[1755445648870,0.43011451,118390.0,118380.0,0.20148033]
[1755445650928,0.26118133,118390.0,118380.0,0.28629438]
[1755445652309,0.43011451,118390.0,118380.0,0.28629438]
[1755445657201,0.17793318,118390.0,118380.0,0.28629438]
[1755445657413,0.43011451,118390.0,118380.0,0.28629438]
[1755445659241,0.17793318,118390.0,118380.0,0.28629438]
[1755445659462,0.43011451,118390.0,118380.0,0.28629438]
[1755445659834,0.43215451,118390.0,118380.0,0.28629438]
[1755445660796,0.43215451,118390.0,118380.0,0.28315438]
[1755445661011,0.43525451,118390.0,118380.0,0.24316693]
[1755445662540,0.43525451,118390.0,118380.0,0.11420693]
[1755445662755,0.43525451,118390.0,118380.0,0.24316693]
[1755445662975,0.43525451,118390.0,118380.0,0.41211438]
[1755445663618,0.43525451,118390.0,118380.0,0.24316693]
[1755445664673,0.43525451,118390.0,118380.0,0.41211438]
[1755445669134,0.18307318,118390.0,118380.0,0.41211438]
[1755445669347,0.43525451,118390.0,118380.0,0.41211438]
[1755445670385,0.43215451,118390.0,118380.0,0.41211438]
[1755445672229,0.43525451,118390.0,118380.0,0.41211438]
[1755445679330,0.18307318,118390.0,118380.0,0.41211438]
[1755445679541,0.43525451,118390.0,118380.0,0.41211438]
[1755445679937,0.43525451,118390.0,118380.0,0.24316693]
[1755445680165,0.43525451,118390.0,118380.0,0.24116693]
[1755445680419,0.43525451,118390.0,118380.0,0.11224693]
[1755445680643,0.43525451,118390.0,118380.0,0.24116693]
[1755445681834,0.43525451,118390.0,118380.0,0.15635288]
[1755445681973,0.43525451,118390.0,118380.0,0.13096888]
[1755445685840,0.18307318,118390.0,118380.0,0.13096888]
[1755445686067,0.43525451,118390.0,118380.0,0.13096888]
[1755445692423,0.18307318,118390.0,118380.0,0.13096888]
[1755445692651,0.43525451,118390.0,118380.0,0.13096888]
[1755445692854,0.43525451,118390.0,118380.0,0.00204888]
[1755445693074,0.43525451,118390.0,118380.0,0.13096888]
[1755445693295,0.18307318,118390.0,118380.0,0.13096888]
[1755445693455,0.43525451,118390.0,118380.0,0.13096888]
[1755445697385,0.18307318,118390.0,118380.0,0.13096888]
[1755445697607,0.43525451,118390.0,118380.0,0.13096888]
[1755445701706,0.43215451,118390.0,118380.0,0.13307888]
[1755445706425,0.43530451,118390.0,118380.0,0.13307888]
[1755445706857,0.43530451,118390.0,118380.0,0.13096888]
[1755445717217,0.18312318,118390.0,118380.0,0.13096888]
[1755445717394,0.43530451,118390.0,118380.0,0.13096888]
[1755445719694,0.43530451,118390.0,118380.0,0.00204888]
[1755445719904,0.68748584,118390.0,118380.0,0.00204888]
[1755445720112,0.43530451,118390.0,118380.0,0.13088888]
[1755445720295,0.18312318,118390.0,118380.0,0.13088888]
[1755445720507,0.43530451,118390.0,118380.0,0.00204888]
[1755445741437,0.18312318,118390.0,118380.0,0.00204888]
[1755445741668,0.17997318,118390.0,118380.0,0.00721888]
[1755445741894,0.43215451,118390.0,118380.0,0.00721888]
[1755445744282,0.17997318,118390.0,118380.0,0.00721888]
[1755445744479,0.43215451,118390.0,118380.0,0.00721888]
[1755445748885,0.43215451,118390.0,118380.0,0.17616633]
[1755445749097,0.43215451,118390.0,118380.0,0.00721888]
[1755445752280,0.17997318,118390.0,118380.0,0.00721888]
[1755445752494,0.43215451,118390.0,118380.0,0.00721888]
[1755445753225,0.17997318,118390.0,118380.0,0.00721888]
[1755445753436,0.43215451,118390.0,118380.0,0.00721888]
[1755445754772,0.43215451,118390.0,118380.0,0.00404888]
[1755445755941,0.17997318,118390.0,118380.0,0.00404888]
[1755445756089,0.43215451,118390.0,118380.0,0.00404888]
[1755445761262,0.43215451,118390.0,118380.0,0.17299633]
[1755445761665,0.43011451,118390.0,118380.0,0.17598633]
[1755445761945,0.17793318,118390.0,118380.0,0.17598633]
[1755445762274,0.43011451,118390.0,118380.0,0.13575888]
[1755445762481,0.43011451,118390.0,118380.0,0.00703888]
[1755445762680,0.43513451,118390.0,118380.0,0.00204888]
[1755445763261,0.68731584,118390.0,118380.0,0.00204888]
[1755445768371,0.81603584,118390.0,118380.0,0.00204888]
[1755445769297,0.31167318,118390.0,118380.0,0.00204888]
[1755445769504,0.81603584,118390.0,118380.0,0.00204888]
[1755445778570,1.06821717,118390.0,118380.0,0.00204888]
[1755445778983,0.81603584,118390.0,118380.0,0.00204888]
[1755445780024,0.31167318,118390.0,118380.0,0.00204888]
[1755445780448,0.81603584,118390.0,118380.0,0.00204888]
[1755445794579,0.31167318,118390.0,118380.0,0.00204888]
[1755445794823,0.81603584,118390.0,118380.0,0.00204888]
[1755445801504,0.81603584,118390.0,118380.0,0.00407888]
[1755445801686,0.81301584,118390.0,118380.0,0.00407888]
[1755445809787,0.81603584,118390.0,118380.0,0.00407888]
[1755445812163,0.81603584,118390.0,118380.0,0.00204888]
[1755445825401,0.31167318,118390.0,118380.0,0.00204888]
[1755445825604,0.81603584,118390.0,118380.0,0.00204888]
[1755445826217,0.31167318,118390.0,118380.0,0.00204888]
[1755445826427,0.81603584,118390.0,118380.0,0.00204888]
[1755445831277,0.31167318,118390.0,118380.0,0.00204888]
[1755445831521,0.81603584,118390.0,118380.0,0.00204888]
[1755445840446,0.31167318,118390.0,118380.0,0.00204888]
[1755445840621,0.81603584,118390.0,118380.0,0.00204888]
[1755445849022,1.06821717,118390.0,118380.0,0.00204888]
[1755445849456,0.81603584,118390.0,118380.0,0.00204888]
[1755445866561,0.81598037,118390.0,118380.0,0.00204888]
[1755445867593,1.15598037,118390.0,118380.0,0.00204888]
[1755445867805,0.67332439,118370.0,118360.0,0.007247]
[1755445867989,0.16899028,118350.0,118340.0,0.02634]
[1755445868203,0.16899028,118350.0,118340.0,0.11318294]
[1755445868403,0.42117161,118350.0,118340.0,0.11318294]
[1755445868643,0.42117161,118350.0,118340.0,0.11533094]
[1755445869505,0.42217161,118350.0,118340.0,0.11533094]
[1755445869715,0.16999028,118350.0,118340.0,0.12364717]
[1755445869897,0.42217161,118350.0,118340.0,0.12364717]
[1755445870906,0.42217161,118350.0,118340.0,0.11533094]
[1755445871854,0.42317161,118350.0,118340.0,0.11633094]
[1755445875037,0.17099028,118350.0,118340.0,0.11633094]
[1755445875370,0.42317161,118350.0,118340.0,0.11633094]
[1755445879566,0.17099028,118350.0,118340.0,0.11633094]
[1755445879787,0.42317161,118350.0,118340.0,0.11633094]
[1755445881402,0.42317161,118350.0,118340.0,0.24485094]
[1755445890523,0.42521161,118350.0,118340.0,0.24485094]
[1755445890760,0.42829161,118350.0,118340.0,0.21636294]
[1755445891401,0.68047294,118350.0,118340.0,0.21636294]
[1755445891604,0.42829161,118350.0,118340.0,0.21636294]
[1755445892833,0.42521161,118350.0,118340.0,0.21636294]
[1755445895356,0.17303028,118350.0,118340.0,0.21636294]
[1755445895566,0.42521161,118350.0,118340.0,0.21947294]
[1755445898856,0.67739294,118350.0,118340.0,0.21947294]
[1755445899075,0.67739294,118350.0,118340.0,0.21636294]
[1755445899286,0.17303028,118350.0,118340.0,0.21636294]
[1755445899746,0.42521161,118350.0,118340.0,0.21636294]
[1755445900410,0.42521161,118350.0,118340.0,0.21947294]
[1755445900625,0.42421161,118350.0,118340.0,0.21947294]
[1755445901206,0.42621161,118350.0,118340.0,0.22047294]
[1755445901426,0.42521161,118350.0,118340.0,0.21947294]
[1755445901798,0.42421161,118350.0,118340.0,0.21947294]
[1755445902207,0.42621161,118350.0,118340.0,0.22047294]
[1755445904183,0.42621161,118350.0,118340.0,0.21736294]
[1755445905327,0.42929161,118350.0,118340.0,0.21736294]
[1755445905711,0.68147294,118350.0,118340.0,0.21736294]
[1755445908424,0.67839294,118350.0,118340.0,0.21736294]
[1755445909472,0.17403028,118350.0,118340.0,0.21736294]
[1755445909675,0.42621161,118350.0,118340.0,0.21736294]
[1755445910942,0.67839294,118350.0,118340.0,0.21736294]
[1755445914619,0.17711028,118350.0,118340.0,0.21736294]
[1755445914815,0.42929161,118350.0,118340.0,0.21736294]
[1755445917033,0.42621161,118350.0,118340.0,0.21736294]
[1755445917560,0.17403028,118350.0,118340.0,0.21736294]
[1755445918179,0.42621161,118350.0,118340.0,0.21736294]
[1755445921497,0.17403028,118350.0,118340.0,0.22047294]
[1755445921754,0.42621161,118350.0,118340.0,0.22047294]
[1755445922566,0.17403028,118350.0,118340.0,0.22047294]
[1755445922835,0.42621161,118350.0,118340.0,0.22047294]
[1755445924168,0.17403028,118350.0,118340.0,0.22047294]
[1755445924583,0.42621161,118350.0,118340.0,0.22047294]
[1755445924800,0.42621161,118350.0,118340.0,0.21736294]
[1755445925470,0.42941161,118350.0,118340.0,0.21736294]
[1755445926710,0.42941161,118350.0,118340.0,0.21538294]
[1755445927017,0.68159294,118350.0,118340.0,0.21538294]
[1755445927660,0.42941161,118350.0,118340.0,0.21538294]
[1755445929758,0.17723028,118350.0,118340.0,0.21538294]
[1755445930017,0.42941161,118350.0,118340.0,0.21538294]
[1755445933593,0.42941161,118350.0,118340.0,0.24077294]
[1755445934410,0.42941161,118350.0,118340.0,0.24278294]
[1755445935151,0.42621161,118350.0,118340.0,0.24278294]
[1755445946366,0.17403028,118350.0,118340.0,0.24278294]
[1755445946562,0.42621161,118350.0,118340.0,0.24278294]
[1755445947136,0.17403028,118350.0,118340.0,0.24278294]
[1755445947333,0.42621161,118350.0,118340.0,0.24278294]
[1755445947538,0.17403028,118350.0,118340.0,0.24599294]
[1755445947776,0.42621161,118350.0,118340.0,0.24599294]
[1755445955869,0.17403028,118350.0,118340.0,0.24599294]
[1755445956077,0.42621161,118350.0,118340.0,0.24599294]
[1755445957077,0.17403028,118350.0,118340.0,0.24599294]
[1755445957498,0.42621161,118350.0,118340.0,0.24599294]
[1755445961948,0.42621161,118350.0,118340.0,0.24278294]
[1755445964119,0.42920161,118350.0,118340.0,0.24077294]
[1755445964919,0.17702028,118350.0,118340.0,0.24077294]
[1755445965113,0.42920161,118350.0,118340.0,0.24077294]
[1755445966260,0.17702028,118350.0,118340.0,0.24284294]
[1755445966507,0.42621161,118350.0,118340.0,0.24284294]
[1755445969537,0.42417161,118350.0,118340.0,0.24582294]
[1755445969762,0.003,118350.0,118340.0,0.4148275]
[1755445969993,0.003,118350.0,118340.0,0.66700883]
[1755445970255,0.003,118350.0,118340.0,0.94305016]
[1755445970477,0.003,118350.0,118340.0,1.28305016]
[1755445971176,0.003,118350.0,118340.0,2.02450816]
[1755445972354,0.003,118350.0,118340.0,2.04950816]
[1755445976295,0.003,118350.0,118340.0,2.05750816]
[1755445976527,0.003,118350.0,118340.0,1.31605016]
[1755445980726,0.003,118350.0,118340.0,0.8116875]
[1755445980990,0.003,118350.0,118340.0,1.01560883]
[1755445981184,0.003,118350.0,118340.0,1.00760883]
[1755445981388,0.003,118350.0,118340.0,1.25979016]
[1755445984602,0.003,118350.0,118340.0,0.7554275]